bitfinex/quotes_ETHUSD_20250107
["timestamp","ask_amount","ask_price","bid_price","bid_amount"]
[1736269923319,0.0075,3469.0,3468.6,0.0075]
[1736269923614,0.257,3469.1,3468.3,2.88325]
[1736269923778,0.07219199,3469.0,3468.3,2.88325]
[1736269923979,0.07219199,3469.0,3468.2,2.88333]
[1736269924220,0.73054888,3469.0,3468.2,2.88333]
[1736269925503,0.73054888,3469.0,3468.1,0.015]
[1736269926005,0.73054888,3469.0,3468.3,0.015]
[1736269927078,0.73054888,3469.0,3468.3,2.89822]
[1736269927318,0.73054888,3469.0,3468.3,0.015]
[1736269927518,0.07219199,3469.0,3468.7,0.0075]
[1736269927719,0.06469199,3469.0,3468.9,2.89775]
[1736269928097,0.0075,3469.7,3469.0,2.89767]
[1736269928419,0.06214204,3469.6,3469.0,0.015]
[1736269928587,3.06214204,3469.6,3468.7,1.2278]
[1736269928788,0.7639219,3469.5,3468.8,0.0075]
[1736269929108,0.7639219,3469.5,3468.8,2.89033]
[1736269929419,0.0075,3469.3,3468.9,0.0075]
[1736269929718,0.0075,3469.3,3469.0,0.0075]
[1736269929906,0.06214204,3469.2,3469.0,0.0075]
[1736269930220,0.0075,3469.4,3469.0,0.0075]
[1736269930522,0.06214204,3469.3,3469.0,0.0075]
[1736269930898,0.0075,3469.4,3469.0,0.0075]
[1736269931108,0.06214204,3469.2,3469.0,0.0075]
[1736269931313,1.2477,3469.8,3469.1,1.2413]
[1736269931668,1.2477,3469.8,3469.4,0.0075]
[1736269931788,0.0075,3469.7,3469.4,0.015]
[1736269932284,1.2308,3470.1,3469.5,0.015]
[1736269932486,1.2308,3470.1,3469.8,0.0075]
[1736269932795,0.0075,3470.0,3469.4,2.88232]
[1736269933588,0.0075,3470.0,3469.5,0.015]
[1736269933883,0.44519,3470.0,3469.5,0.015]
[1736269934088,0.0075,3470.0,3469.5,0.015]
[1736269937305,5.7716,3470.0,3469.6,0.0075]
[1736269938546,5.7641,3470.0,3469.2,0.015]
[1736269938744,5.7641,3470.0,3469.9,2.89692]
[1736269938945,5.7641,3470.0,3469.9,3.474829]
[1736269939222,5.7641,3470.0,3469.9,2.89692]
[1736269939376,4.2641,3470.0,3469.9,2.89692]
[1736269939572,4.32544215,3470.0,3469.9,4.15522]
[1736269940745,4.2641,3470.0,3469.9,4.15522]
[1736269940946,4.32544215,3470.0,3469.9,4.15522]
[1736269941154,4.32544215,3470.0,3469.9,4.858959]
[1736269944089,2.15e-06,3470.0,3469.9,8.4377742]
[1736269944388,0.0075,3471.0,3470.0,3.565]
[1736269944557,0.0075,3471.0,3470.8,0.015]
[1736269945086,0.0075,3471.0,3470.9,0.015]
[1736269945382,0.0075,3471.0,3470.6,2.88132]
[1736269945588,0.0075,3470.8,3470.7,0.015]
[1736269946761,0.0075,3471.0,3470.5,0.0075]
[1736269946962,0.0075,3471.0,3469.9,1.962039]
[1736269946963,0.05800893,3470.9,3470.2,2.88164]
[1736269947279,0.0075,3471.0,3470.1,0.0075]
[1736269947664,0.0075,3470.8,3470.1,0.0075]
[1736269947992,0.0075,3470.8,3470.1,2.88917]
[1736269948194,0.0075,3471.0,3470.2,2.88915]
[1736269948488,0.0075,3471.0,3470.3,0.0075]
[1736269948693,0.0075,3471.0,3470.4,0.015]
[1736269949891,0.43348,3471.0,3470.4,0.015]
[1736269950192,0.43348,3471.0,3470.2,0.0075]
[1736269950617,0.43348,3471.0,3470.6,0.0075]
[1736269950921,1.3431,3471.4,3470.8,0.0075]
[1736269951217,0.05587327,3471.3,3470.9,0.0075]
[1736269951387,0.05587327,3471.3,3470.9,0.015]
[1736269951589,0.0075,3471.2,3470.9,0.015]
[1736269951795,0.05635727,3471.1,3470.9,0.015]
[1736269951995,1.3431,3471.4,3470.9,0.015]
[1736269952293,0.0075,3471.2,3470.9,0.015]
[1736269952779,1.3431,3471.4,3470.9,0.015]
[1736269952780,0.05635727,3471.1,3470.9,0.015]
[1736269952975,1.19019879,3472.2,3470.9,0.015]
[1736269953235,1.2695,3471.7,3471.1,2.88092]
[1736269953547,1.5255,3472.0,3471.4,0.015]
[1736269953816,0.0075,3471.9,3471.5,0.015]
[1736269954016,0.05635727,3471.8,3471.5,0.015]
[1736269954258,0.0075,3471.7,3471.3,0.015]
[1736269954609,0.0075,3471.9,3471.3,0.015]
[1736269954915,0.0075,3471.7,3471.3,0.015]
[1736269955342,0.0075,3471.7,3471.0,2.88098]
[1736269955484,0.0075,3471.5,3471.1,0.015]
[1736269955986,0.05635727,3471.4,3471.1,0.015]
[1736269956338,1.3686,3471.3,3470.0,1.2886]
[1736269956640,1.3686,3471.3,3470.6,2.88131]
[1736269956641,1.83095069,3471.3,3470.6,2.88131]
[1736269956779,1.83095069,3471.3,3470.3,0.0075]
[1736269956780,1.83095069,3471.3,3470.3,0.03631092]
[1736269956985,1.83095069,3471.3,3470.0,1.2886]
[1736269956986,1.83095069,3471.3,3470.2,0.0075]
[1736269957187,0.0075,3471.0,3470.2,0.0075]
[1736269957423,0.0075,3470.8,3470.2,0.0075]
[1736269957793,0.78148669,3470.8,3470.0,0.0075]
[1736269957996,0.0075,3470.8,3470.0,0.0075]
[1736269958198,0.0075,3470.8,3470.1,0.0075]
[1736269958427,0.0075,3470.8,3470.2,0.0075]
[1736269958934,0.0075,3470.8,3469.9,100.0]
[1736269959429,2.88875,3470.8,3470.0,0.015]
[1736269959632,0.0075,3470.8,3470.0,0.015]
[1736269960191,2.88869,3470.8,3470.0,0.015]
[1736269960697,0.0075,3470.8,3470.0,0.04381497]
[1736269960922,0.0075,3470.8,3470.0,0.015]
[1736269961514,0.0075,3470.6,3470.0,0.015]
[1736269962037,1.3182,3470.5,3470.0,0.0075]
[1736269962332,0.0075,3470.2,3470.0,0.0075]
[1736269962699,0.0075,3470.3,3469.9,100.0]
[1736269963032,2.88911,3470.3,3469.9,100.0]
[1736269963244,1.3559,3470.0,3469.9,100.0]
[1736269963416,1.3559,3470.0,3469.9,100.0075]
[1736269964421,0.0075,3470.0,3469.9,100.0075]
[1736269964628,1.3484,3470.7,3469.9,100.0]
[1736269965639,3.92173937,3470.6,3470.0,0.015]
[1736269966139,0.0075,3470.4,3470.0,0.015]
[1736269966441,0.05342851,3470.3,3469.9,100.0]
[1736269966650,0.0075,3470.2,3469.9,100.0]
[1736269966998,1.3558,3470.1,3469.9,100.0]
[1736269967902,1.3633,3470.4,3469.9,100.0]
[1736269968316,1.3633,3470.4,3470.0,0.0075]
[1736269970642,0.0075,3470.5,3470.0,0.0075]
[1736269972951,3.0075,3470.5,3470.0,0.0075]
[1736269973338,0.0075,3470.5,3470.0,0.0075]
[1736269973941,2.51339879,3470.7,3470.0,0.0363157]
[1736269974270,1.19019879,3470.7,3470.4,0.015]
[1736269974551,0.0075,3470.6,3470.4,0.04381173]
[1736269974911,0.0075,3470.6,3470.5,35.015]
[1736269975745,0.0075,3470.7,3470.6,0.015]
[1736269976384,2.45431338,3470.9,3470.6,0.015]
[1736269976871,2.45431338,3470.9,3470.8,0.015]
[1736269977270,0.0075,3470.8,3470.6,1.3345]
[1736269978068,1.19019879,3470.9,3470.8,4.15228]
[1736269978428,1.19769879,3470.9,3470.8,4.15228]
[1736269978666,1.19769879,3470.9,3470.8,0.0075]
[1736269978667,0.0075,3470.9,3470.8,0.0075]
[1736269978988,0.05430462,3470.9,3470.5,35.0]
[1736269979143,2.88109,3470.9,3470.1,1.3004]
[1736269979332,1.3138,3470.8,3470.1,1.3004]
[1736269979535,1.3138,3470.8,3470.2,0.0075]
[1736269979946,1.3138,3470.8,3470.2,0.015]
[1736269980553,1.19019879,3471.1,3470.4,2.88149]
[1736269980874,4.19019879,3471.1,3470.5,0.015]
[1736269981075,0.0075,3471.0,3470.7,0.0075]
[1736269981247,0.0543455,3470.9,3470.7,0.0075]
[1736269981431,4.19019879,3471.1,3470.2,2.88166]
[1736269981631,0.0075,3470.6,3470.2,2.88166]
[1736269981875,0.0075,3470.6,3470.3,0.015]
[1736269982080,0.0075,3470.6,3470.5,0.015]
[1736269982272,0.0075,3470.6,3470.5,0.0075]
[1736269983276,0.0075,3470.7,3470.5,0.0075]
[1736269984875,1.19019879,3470.8,3470.5,0.0075]
[1736269985043,1.19019879,3470.8,3470.7,2.89626]
[1736269985249,1.25204429,3470.8,3470.7,2.89626]
[1736269985452,1.25204429,3470.8,3470.7,0.015]
[1736269985757,0.0618455,3470.8,3470.7,0.015]
[1736269985937,0.0618455,3470.8,3470.7,35.04380967]
[1736269986139,0.0618455,3470.8,3470.7,35.015]
[1736269986376,0.0618455,3470.8,3470.7,39.27046]
[1736269987585,0.0618455,3470.8,3470.7,0.0075]
[1736269987876,0.0618455,3470.8,3470.0,4.24681]
[1736269987877,0.0543455,3470.8,3470.0,4.24681]
[1736269988085,1.3011,3470.8,3470.1,37.88175]
[1736269988959,1.3011,3470.8,3470.2,0.015]
[1736269989158,1.3011,3470.8,3470.4,0.0075]
[1736269989400,1.3011,3470.8,3470.4,2.91782216]
[1736269989548,4.19019879,3471.2,3470.6,0.0075]
[1736269989742,4.19019879,3471.2,3470.6,0.03630959]
[1736269989943,1.19019879,3470.9,3470.8,0.0075]
[1736269990162,1.19769879,3470.9,3470.8,0.0075]
[1736269990361,1.25249968,3470.9,3470.8,0.0075]
[1736269990562,1.25249968,3470.9,3470.8,35.015]
[1736269990891,1.19769879,3470.9,3470.8,35.015]
[1736269991187,0.06230089,3470.9,3470.8,35.015]
[1736269992752,0.0075,3470.8,3470.1,2.88173]
[1736269992974,0.0075,3470.6,3469.7,1.3736]
[1736269993174,0.0075,3470.6,3470.0,35.0]
[1736269993750,0.0075,3470.2,3469.3,4.19695]
[1736269994068,5.73154058,3470.0,3469.2,1.20908303]
[1736269994271,5.73154058,3470.0,3469.3,35.0]
[1736269994491,8.61338058,3470.0,3469.3,35.0]
[1736269994692,5.88934,3470.0,3469.2,1.20908303]
[1736269994875,3.0075,3470.0,3469.2,4.09158303]
[1736269995195,3.0,3470.0,3469.9,100.0075]
[1736269996272,7.30348495,3470.0,3469.9,100.0075]
[1736269997864,6.70983744,3470.0,3469.9,100.0075]
[1736269998396,6.70983744,3470.0,3469.9,50.0075]
[1736269998973,6.655825,3470.0,3469.9,50.0075]
[1736269999171,11.09870785,3470.0,3469.9,50.0075]
[1736269999376,11.15272029,3470.0,3469.9,50.0075]
[1736269999775,12.49132029,3470.0,3469.9,50.0]
[1736269999988,13.04132029,3470.0,3469.9,50.0]
[1736270000676,13.82467305,3470.0,3469.9,50.0]
[1736270000875,13.82467305,3470.0,3469.9,50.0075]
[1736270002675,13.82467305,3470.0,3469.9,46.80118051]
[1736270002874,14.40778882,3470.0,3469.9,46.80118051]
[1736270005095,20.17158882,3470.0,3469.9,46.80118051]
[1736270007266,23.16188125,3470.0,3469.9,46.80118051]
[1736270009090,23.16188125,3470.0,3469.9,41.34355588]
[1736270009280,23.41688125,3470.0,3469.9,37.6079046]
[1736270009477,29.02739802,3470.0,3469.9,19.5941288]
[1736270009790,29.02739802,3470.0,3469.9,10.24350632]
[1736270009988,2.88299,3468.7,3467.9,0.0075]
[1736270010207,3.2625,3468.6,3467.9,0.0075]
[1736270010363,3.0075,3468.4,3467.8,1.3564]
[1736270010566,0.55,3468.3,3467.4,1.3564]
[1736270010782,5.89091,3468.2,3467.4,4.2175894]
[1736270010981,11.70659565,3468.2,3467.4,4.2175894]
[1736270011774,11.70659565,3468.2,3467.5,0.0075]
[1736270011974,11.70659565,3468.2,3467.4,4.2175894]
[1736270012408,11.70659565,3468.2,3467.5,0.0075]
[1736270012409,8.82318565,3468.2,3467.5,0.0075]
[1736270013811,0.0075,3468.0,3467.5,0.0075]
[1736270013981,8.7713,3468.0,3467.5,0.0075]
[1736270014182,11.65486,3468.0,3467.5,0.0075]
[1736270014401,3.0075,3467.8,3467.3,35.0]
[1736270014600,3.0075,3467.8,3466.8,1.2746]
[1736270014601,0.0075,3467.6,3466.8,1.2746]
[1736270014779,0.0075,3467.6,3465.6,6.14182608]
[1736270014780,7.14062,3467.4,3466.3,2.88491]
[1736270014975,0.0075,3467.2,3466.5,2.88474]
[1736270015215,5.7713,3467.2,3466.6,35.015]
[1736270015513,0.0075,3467.0,3466.6,37.8686894]
[1736270015720,5.7713,3467.0,3466.9,0.0075]
[1736270016095,5.82251894,3467.0,3466.9,0.0075]
[1736270016490,5.82251894,3467.0,3466.7,0.0075]
[1736270017920,5.81501894,3467.0,3466.7,0.0075]
[1736270018080,5.81501894,3467.0,3466.9,2.89192]
[1736270018282,5.81501894,3467.0,3466.9,2.89942]
[1736270018481,5.81501894,3467.0,3466.9,39.24332]
[1736270018676,5.7638,3467.0,3466.9,39.24332]
[1736270023321,5.7638,3467.0,3466.9,4.24332]
[1736270023548,5.81424693,3467.0,3466.9,5.33902517]
[1736270023923,5.81424693,3467.0,3466.9,40.33902517]
[1736270024117,5.7638,3467.0,3466.9,40.33902517]
[1736270024524,5.7638,3467.0,3466.9,37.44710517]
[1736270024719,5.7638,3467.0,3466.9,35.0]
[1736270024936,5.81424693,3467.0,3466.2,4.24729]
[1736270025246,5.81424693,3467.0,3466.3,0.0075]
[1736270025247,0.0075,3466.8,3466.3,0.0075]
[1736270025447,0.0075,3466.8,3466.3,35.0075]
[1736270025772,0.05044693,3466.7,3466.4,0.0075]
[1736270026135,0.0075,3466.8,3466.4,0.0075]
[1736270026340,0.05044693,3466.7,3466.4,0.0075]
[1736270026740,0.0075,3466.8,3466.4,0.0075]
[1736270026926,0.0075,3466.8,3466.3,35.0075]
[1736270026927,0.05044693,3466.7,3466.3,0.0075]
[1736270027109,5.7638,3466.7,3465.9,2.88518]
[1736270027311,0.05044693,3466.6,3465.9,2.88518]
[1736270027750,5.81424693,3466.6,3466.0,0.015]
[1736270027910,3.0,3466.5,3466.0,0.015]
[1736270028106,8.7638,3466.5,3465.7,2.8854]
[1736270028352,0.05044693,3466.4,3465.7,0.015]
[1736270028506,5.81424693,3466.4,3465.7,0.015]
[1736270028713,5.81424693,3466.4,3465.5,1.3471]
[1736270028714,7.20224,3466.3,3465.5,1.3471]
[1736270028948,1.30164869,3466.2,3465.5,1.3471]
[1736270029148,0.05044693,3466.1,3465.5,1.3471]
[1736270029323,3.0,3466.0,3465.2,1.3471]
[1736270029561,8.7638,3466.0,3465.3,2.89324]
[1736270029764,0.05044693,3465.9,3465.3,2.89324]
[1736270030269,0.05044693,3465.9,3465.5,0.0075]
[1736270030475,0.05044693,3465.9,3465.7,0.015]
[1736270031178,0.05044693,3465.9,3465.8,0.015]
[1736270031351,0.05044693,3465.9,3465.4,1.3057]
[1736270031683,0.05044693,3465.9,3465.4,4.1913]
[1736270031880,0.05044693,3465.9,3465.6,0.0075]
[1736270033074,0.05044693,3465.9,3465.5,0.015]
[1736270033272,0.05044693,3465.9,3465.5,2.90057]
[1736270033697,0.05044693,3465.9,3465.5,2.89307]
[1736270033863,0.05044693,3465.9,3465.5,0.0075]
[1736270034061,1.33414693,3465.9,3465.1,4.1971]
[1736270034257,7.09794693,3465.9,3465.1,1.3112]
[1736270034461,7.09794693,3465.9,3465.3,0.015]
[1736270035163,8.39624262,3465.9,3465.1,1.3112]
[1736270035563,8.39624262,3465.9,3465.1,4.19705]
[1736270035763,3.0,3465.8,3465.1,4.19705]
[1736270035965,0.04877302,3465.7,3465.1,4.19705]
[1736270036199,0.04877302,3465.7,3465.2,0.0075]
[1736270037719,1.18822989,3465.7,3465.0,0.015]
[1736270037925,3.0,3465.6,3465.0,0.015]
[1736270038122,4.2542,3465.4,3464.5,4.18881]
[1736270038422,7.018,3465.4,3464.6,0.03636041]
[1736270038635,7.018,3465.4,3465.1,0.0075]
[1736270038636,0.04857978,3465.3,3465.1,0.0075]
[1736270039188,0.04857978,3465.3,3464.9,0.0075]
[1736270039586,0.04857978,3465.3,3464.9,2.8935]
[1736270040033,0.04857978,3465.3,3465.1,0.0075]
[1736270040332,5.81237978,3465.3,3464.8,2.88616]
[1736270040689,5.81237978,3465.3,3464.9,0.015]
[1736270040916,4.492,3464.6,3463.6,2.88713]
[1736270041104,0.30243921,3464.5,3462.9,1.47849245]
[1736270041292,3.0,3464.4,3463.5,2.88725]
[1736270041528,8.7638,3464.4,3463.5,2.88725]
[1736270041733,0.04843921,3464.3,3463.6,0.0075]
[1736270042033,3.0,3464.2,3463.5,2.88725]
[1736270042196,3.0,3464.2,3463.6,0.0075]
[1736270042711,0.04843921,3464.1,3463.6,0.0075]
[1736270043433,0.04843921,3464.1,3463.6,0.015]
[1736270044296,0.04843921,3464.1,3463.8,0.015]
[1736270044525,5.7638,3464.3,3464.1,0.015]
[1736270044736,5.7638,3464.3,3464.2,3.3190993]
[1736270045115,5.7638,3464.3,3464.2,0.4324393]
[1736270045355,5.81223921,3464.3,3464.2,0.0075]
[1736270046033,5.81223921,3464.3,3463.6,4.3233]
[1736270046749,5.81223921,3464.3,3463.7,0.015]
[1736270047322,5.81223921,3464.3,3463.9,0.015]
[1736270047837,5.81223921,3464.3,3463.9,0.04386557]
[1736270049173,5.81223921,3464.3,3464.0,0.0075]
[1736270049938,5.81223921,3464.3,3464.0,0.015]
[1736270050324,5.81223921,3464.3,3464.0,2.90182]
[1736270050527,5.81223921,3464.3,3464.2,0.015]
[1736270050721,5.81223921,3464.3,3464.2,2.90166]
[1736270050931,5.7638,3464.3,3464.2,2.90166]
[1736270051134,5.81163008,3464.3,3464.2,2.90166]
[1736270053954,5.81163008,3464.3,3464.0,1.820082]
[1736270053955,5.81163008,3464.3,3464.0,4.706832]
[1736270054166,5.7638,3464.3,3464.0,4.706832]
[1736270054325,0.04754889,3464.2,3464.1,0.04386453]
[1736270054665,5.7638,3464.3,3464.1,3.11700918]
[1736270054966,5.7638,3464.3,3464.1,2.90175]
[1736270055772,5.7638,3464.3,3464.1,2.93061401]
[1736270055924,5.7638,3464.3,3464.1,2.90175]
[1736270056128,5.7638,3464.3,3464.2,2.88666]
[1736270056567,5.7638,3464.3,3464.2,2.89416]
[1736270056752,5.7638,3464.3,3464.2,3.337316]
[1736270057144,5.7638,3464.3,3464.2,6.09627147]
[1736270057347,5.7638,3464.3,3464.2,4.835416]
[1736270061652,5.7638,3464.3,3464.2,4.86427799]
[1736270062639,1.4969,3465.5,3464.2,4.86427799]
[1736270062640,1.4969,3465.5,3464.5,0.0075]
[1736270062841,1.4135,3466.2,3465.5,0.015]
[1736270063135,1.19500835,3466.3,3466.1,0.015]
[1736270063381,1.19500835,3466.3,3466.1,2.92886848]
[1736270063550,1.19500835,3466.4,3465.8,0.0075]
[1736270063749,1.52954981,3466.4,3465.8,0.0075]
[1736270063957,1.561,3466.2,3465.8,0.0075]
[1736270064158,1.561,3466.2,3464.5,4.27149299]
[1736270064373,1.561,3466.2,3465.4,0.015]
[1736270064586,0.0075,3466.3,3465.4,1.5266]
[1736270064772,1.4145,3466.2,3465.4,0.0075]
[1736270064950,1.4145,3466.2,3465.2,0.0288539]
[1736270065295,1.4145,3466.2,3465.3,2.88569]
[1736270065840,1.4145,3466.2,3465.4,0.015]
[1736270066636,4.2995,3466.2,3465.4,0.015]
[1736270066859,1.07045907,3466.1,3465.4,0.015]
[1736270067135,1.07045907,3466.1,3465.0,0.015]
[1736270067340,1.07045907,3466.1,3465.5,0.015]
[1736270067941,1.07045907,3466.1,3465.3,0.015]
[1736270068338,1.4552,3465.9,3464.4,2.88646]
[1736270068544,1.4552,3465.7,3464.7,2.8862]
[1736270068775,1.4552,3465.7,3464.8,2.8861]
[1736270068976,1.4552,3465.7,3464.9,0.0075]
[1736270069178,1.4552,3465.7,3464.9,2.89356]
[1736270069787,1.4552,3465.7,3465.1,0.0075]
[1736270069984,2.29720352,3465.7,3465.1,0.0075]
[1736270071558,1.4552,3465.7,3465.2,0.0075]
[1736270071783,1.4552,3465.7,3465.4,0.0075]
[1736270072690,1.4552,3465.7,3464.8,0.015]
[1736270072897,1.4552,3465.7,3465.0,2.88597]
[1736270073492,1.4552,3465.7,3465.1,0.015]
[1736270073699,2.189239,3465.7,3465.1,0.015]
[1736270073996,2.189239,3465.7,3464.6,0.02885796]
[1736270074300,2.189239,3465.7,3464.9,0.0075]
[1736270074797,2.189239,3465.7,3465.1,0.0075]
[1736270074798,1.4552,3465.7,3465.1,0.0075]
[1736270075170,0.04687296,3465.6,3465.1,0.015]
[1736270075799,0.04687296,3465.6,3465.1,0.04385602]
[1736270076297,0.04687296,3465.6,3464.9,0.0075]
[1736270076989,0.04687296,3465.6,3464.5,1.4772]
[1736270077191,0.04687296,3465.6,3464.8,0.015]
[1736270077395,4.30743,3465.4,3464.3,3.46417611]
[1736270077595,4.4217,3465.4,3464.3,2.88651]
[1736270077787,1.4217,3465.2,3464.3,2.88651]
[1736270077983,0.04665609,3465.1,3464.4,0.015]
[1736270078182,5.81905609,3465.1,3464.4,2.90147]
[1736270078500,5.81905609,3465.1,3464.6,0.015]
[1736270078999,6.5431317,3465.1,3464.6,0.015]
[1736270079200,3.0,3465.0,3464.4,0.0075]
[1736270079498,1.4184,3464.7,3464.1,0.2488]
[1736270079704,2.88641,3464.6,3464.1,0.2488]
[1736270079905,1.4184,3464.5,3464.1,0.2488]
[1736270080201,11.08965661,3464.5,3464.1,0.2488]
[1736270080499,0.04665609,3464.4,3464.1,0.2488]
[1736270080689,0.04665609,3464.4,3464.2,0.0075]
[1736270080690,5.81905609,3464.4,3464.2,0.0075]
[1736270080992,5.81905609,3464.4,3464.1,0.2488]
[1736270081398,5.81905609,3464.4,3464.2,0.0075]
[1736270082594,1.439,3464.3,3464.1,0.2488]
[1736270082763,7.2114,3464.3,3464.1,0.2488]
[1736270083191,0.04589389,3464.2,3464.1,0.2563]
[1736270083396,5.7724,3464.2,3464.1,0.2488]
[1736270083603,5.81829389,3464.2,3464.1,0.2488]
[1736270083908,5.81829389,3464.2,3464.1,0.2563]
[1736270088088,5.81829389,3464.2,3464.1,0.2638]
[1736270088925,5.81829389,3464.2,3464.1,0.2563]
[1736270091478,5.81829389,3464.2,3464.1,0.2638]
[1736270094373,5.81829389,3464.2,3464.1,3.618559]
[1736270095037,5.81829389,3464.2,3464.1,40.06112368]
[1736270095038,4.37496389,3464.2,3464.1,40.06112368]
[1736270095344,1.19500835,3465.0,3464.9,2.88608]
[1736270095802,1.20250835,3465.0,3464.9,2.90108]
[1736270096136,1.20250835,3465.0,3464.9,37.90108]
[1736270096340,1.20250835,3465.0,3464.9,40.7622694]
[1736270096640,1.20250835,3465.0,3464.9,35.015]
[1736270096801,1.4966,3465.0,3464.9,35.015]
[1736270097339,0.0075,3465.0,3464.9,35.015]
[1736270098161,0.0075,3465.0,3464.9,0.015]
[1736270098727,0.0075,3465.0,3464.7,35.0]
[1736270099050,0.0075,3465.0,3464.8,0.015]
[1736270099955,2.64240835,3465.6,3465.1,0.015]
[1736270100459,1.4474,3465.6,3465.1,0.0075]
[1736270100661,2.88566,3465.5,3464.7,35.0]
[1736270100806,1.12581613,3465.4,3464.3,4.43752]
[1736270101002,4.01151613,3465.4,3464.4,2.90143]
[1736270101216,4.01151613,3465.4,3464.4,37.90143]
[1736270101714,1.12581613,3465.4,3464.6,0.015]
[1736270102247,1.5367,3465.2,3464.6,0.0075]
[1736270102446,1.5367,3465.2,3464.1,0.716809]
[1736270102447,1.5367,3464.7,3464.1,0.2488]
[1736270102647,4.42298,3464.7,3464.1,0.2488]
[1736270102942,0.04306657,3464.6,3464.1,0.2488]
[1736270103324,5.81616657,3464.6,3464.1,0.2488]
[1736270103644,5.81616657,3464.6,3464.1,3.13552]
[1736270103848,5.81616657,3464.6,3464.2,35.0075]
[1736270104247,5.81616657,3464.6,3464.2,35.0]
[1736270104786,5.81616657,3464.6,3464.3,0.0075]
[1736270104909,5.81616657,3464.6,3464.4,2.88649]
[1736270105110,5.81616657,3464.6,3464.3,0.0075]
[1736270105111,5.81616657,3464.6,3464.2,2.8866]
[1736270105323,5.81616657,3464.6,3464.5,35.015]
[1736270106852,5.81616657,3464.6,3464.5,35.0075]
[1736270107224,5.7731,3464.6,3464.5,35.0075]
[1736270107429,5.7731,3464.6,3464.5,0.0075]
[1736270107623,5.8162722,3464.6,3464.5,0.0075]
[1736270109874,5.8162722,3464.6,3464.5,0.015]
[1736270110075,5.8162722,3464.6,3464.5,4.42351]
[1736270110277,5.7731,3464.6,3464.5,5.15741046]
[1736270110417,5.81413956,3464.6,3464.5,5.15741046]
[1736270110624,5.81413956,3464.6,3464.5,40.15741046]
[1736270111023,5.7731,3464.6,3464.5,40.15741046]
[1736270113060,5.7731,3464.6,3464.5,40.72423242]
[1736270113422,5.7731,3464.6,3464.5,43.72423242]
[1736270114860,2.88676,3464.6,3464.5,44.27423242]
[1736270115061,0.00042,3464.6,3464.5,44.27423242]
[1736270115263,1.19500835,3466.1,3465.8,0.015]
[1736270115641,0.04146822,3466.0,3465.8,0.015]
[1736270116034,0.04146822,3466.0,3465.9,35.0075]
[1736270116860,2.47513812,3466.3,3466.0,0.0075]
[1736270117467,2.47513812,3466.3,3466.2,0.0075]
[1736270117966,2.47513812,3466.3,3465.9,0.0075]
[1736270118163,2.72190835,3466.4,3465.9,0.0075]
[1736270118792,2.72190835,3466.4,3465.8,0.015]
[1736270119085,1.19500835,3466.4,3466.0,0.015]
[1736270119302,1.19500835,3466.4,3465.7,37.88533]
[1736270119303,1.4465,3466.3,3465.7,35.0]
[1736270119575,2.8854,3465.8,3464.8,4.41583]
[1736270119842,2.88545,3465.7,3464.9,0.0075]
[1736270119985,2.88558,3465.5,3464.9,0.0075]
[1736270120176,0.04146822,3465.4,3464.9,0.0075]
[1736270120489,2.8859,3465.2,3464.5,1.20908303]
[1736270120785,1.4465,3465.3,3464.5,35.0]
[1736270120961,2.88592,3465.1,3464.5,35.0]
[1736270121167,4.33226,3465.3,3464.5,35.0]
[1736270121548,0.04146822,3465.2,3464.6,0.0075]
[1736270121755,0.04146822,3465.2,3464.6,2.8686894]
[1736270122065,1.03071205,3465.2,3464.6,2.8686894]
[1736270122267,1.5445,3465.1,3464.6,0.0075]
[1736270122653,5.61620299,3464.9,3464.5,35.0]
[1736270122849,1.4639,3464.8,3464.5,35.0]
[1736270123282,0.04179708,3464.7,3464.5,35.0]
[1736270123696,1.4639,3464.8,3464.5,35.0]
[1736270124196,0.04179708,3464.7,3464.5,35.0]
[1736270124361,1.4639,3464.8,3464.5,35.0]
[1736270124559,0.04179708,3464.7,3464.5,35.0]
[1736270124802,1.4639,3464.8,3464.5,35.0]
[1736270125095,0.04179708,3464.7,3464.5,35.0]
[1736270125497,1.4639,3464.8,3464.5,35.0]
[1736270125792,1.4639,3464.8,3464.5,0.0075]
[1736270125960,1.03106455,3464.7,3464.3,0.0075]
[1736270126164,1.03106455,3464.7,3464.5,0.0075]
[1736270126358,1.03106455,3464.7,3464.6,35.0]
[1736270127385,1.4593,3464.6,3464.1,0.2488]
[1736270127586,0.04144478,3464.5,3464.2,0.015]
[1736270127756,0.04144478,3464.5,3464.4,0.0075]
[1736270127963,1.4593,3464.6,3464.4,0.0075]
[1736270128982,0.04144478,3464.5,3464.2,0.015]
[1736270129185,0.59963809,3464.5,3464.2,0.015]
[1736270129697,0.04144478,3464.5,3464.2,35.015]
[1736270130561,4.19500835,3464.7,3464.2,35.015]
[1736270130899,0.04144478,3464.6,3464.2,35.015]
[1736270131307,2.77153777,3464.6,3464.2,35.015]
[1736270131602,0.04144478,3464.6,3464.2,35.015]
[1736270133100,7.20737299,3464.3,3464.1,0.2488]
[1736270133305,7.47736,3464.2,3464.1,0.2488]
[1736270133516,7.51868144,3464.2,3464.1,0.2488]
[1736270133675,7.77068144,3464.2,3464.1,0.2488]
[1736270133885,9.65940488,3464.2,3464.1,0.2488]
[1736270134997,7.51868144,3464.2,3464.1,0.2488]
[1736270135514,7.51868144,3464.2,3464.1,0.2563]
[1736270135890,14.95599485,3464.2,3464.1,0.2563]
[1736270136074,3.0,3463.8,3463.1,0.0075]
[1736270136283,2.73009299,3463.5,3463.0,35.0]
[1736270136484,2.88743,3463.3,3462.9,0.01639245]
[1736270136882,0.0404286,3463.2,3463.0,35.0]
[1736270137424,5.7752,3463.3,3463.1,0.0075]